fUST/lending_fUST_20250206
["ID","MTS","AMOUNT","RATE_DAILY","PERIOD"]
[351896526,1738831843075,-447.58548026,0.00013972,2]
[351896528,1738831843085,-500.0,0.00013972,2]
[351896530,1738831843095,-596.81,0.00013972,2]
[351896532,1738831843104,-500.0,0.00013972,2]
[351896534,1738831843114,-500.0,0.00013972,2]
[351896536,1738831843123,-500.0,0.00013972,2]
[351896538,1738831843133,-500.0,0.00013972,2]
[351896540,1738831843142,-500.0,0.00013972,2]
[351896542,1738831843152,-500.0,0.00013972,2]
[351896544,1738831843163,-500.0,0.00013972,2]
[351896546,1738831843173,-684.27,0.00013972,2]
[351896548,1738831843182,-500.0,0.00013972,2]
[351896550,1738831843191,-500.0,0.00013972,2]
[351896552,1738831843203,-500.0,0.00013972,2]
[351896554,1738831843212,-1113.03,0.00013972,2]
[351896556,1738831843222,-500.0,0.00013972,2]
[351896558,1738831843234,-1767.07,0.00013972,2]
[351896560,1738831843245,-500.0,0.00013972,2]
[351896562,1738831843254,-1100.91,0.00013972,2]
[351896564,1738831843264,-646.29,0.00013972,2]
[351896566,1738831843274,-1104.32,0.00013972,2]
[351896568,1738831843284,-1568.08,0.00013972,2]
[351896570,1738831843294,-500.0,0.00013972,2]
[351896572,1738831843304,-500.0,0.00013972,2]
[351896574,1738831843314,-500.0,0.00013972,2]
[351896576,1738831843323,-500.0,0.00013972,2]
[351896578,1738831843333,-500.0,0.00013972,2]
[351896580,1738831843343,-3532.37,0.00013972,2]
[351896582,1738831843353,-500.0,0.00013972,2]
[351896585,1738831843363,-1419.32,0.00013972,2]
[351896587,1738831843372,-500.0,0.00013972,2]
[351896589,1738831843382,-500.0,0.00013972,2]
[351896591,1738831843391,-500.0,0.00013972,2]
[351896593,1738831843401,-500.0,0.00013972,2]
[351896595,1738831843410,-1732.0,0.00013972,2]
[351896597,1738831843419,-500.0,0.00013972,2]
[351896599,1738831843429,-500.0,0.00013972,2]
[351896601,1738831843438,-4570.86,0.00013972,2]
[351896603,1738831843448,-786.84,0.00013972,2]
[351896605,1738831843458,-1690.01,0.00013972,2]
[351896607,1738831843468,-688.56,0.00013972,2]
[351896609,1738831843478,-500.0,0.00013972,2]
[351896611,1738831843488,-611.71,0.00013972,2]
[351896613,1738831843498,-500.0,0.00013972,2]
[351896615,1738831843507,-1303.66,0.00013972,2]
[351896617,1738831843517,-500.0,0.00013972,2]
[351896619,1738831843528,-500.0,0.00013972,2]
[351896621,1738831843539,-500.0,0.00013972,2]
[351896623,1738831843549,-1812.26,0.00013972,2]
[351896625,1738831843558,-500.0,0.00013972,2]
[351896627,1738831843568,-599.61,0.00013972,2]
[351896629,1738831843577,-579.42,0.00013972,2]
[351896631,1738831843587,-563.05357203,0.00013972,2]
[351896633,1738831843596,-500.0,0.00013972,2]
[351896635,1738831843606,-500.0,0.00013972,2]
[351896638,1738831843616,-3360.55,0.00013972,2]
[351896640,1738831843626,-2295.17,0.00013972,2]
[351896642,1738831843635,-620.45,0.00013972,2]
[351896644,1738831843645,-500.0,0.00013972,2]
[351896646,1738831843654,-500.0,0.00013972,2]
[351896648,1738831843663,-11293.93,0.00013972,2]
[351896650,1738831843673,-1452.37,0.00013972,2]
[351896652,1738831843683,-1378.43,0.00013972,2]
[351896654,1738831843692,-579.36,0.00013972,2]
[351896656,1738831843702,-1012.14,0.00013972,2]
[351896658,1738831843712,-500.0,0.00013972,2]
[351896660,1738831843722,-926.12,0.00013972,2]
[351896662,1738831843732,-1239.45,0.00013972,2]
[351896664,1738831843742,-8141.8,0.00013972,2]
[351896666,1738831843752,-500.0,0.00013972,2]
[351896668,1738831843761,-621.45,0.00013972,2]
[351896670,1738831843772,-500.0,0.00013972,2]
[351896672,1738831843781,-500.0,0.00013972,2]
[351896674,1738831843791,-500.0,0.00013972,2]
[351896676,1738831843801,-211.40058636,0.00013972,2]
[351896678,1738831843810,-500.0,0.00013972,2]
[351896680,1738831843820,-2664.82,0.00013972,2]
[351896682,1738831843830,-500.0,0.00013972,2]
[351896684,1738831843840,-822.74,0.00013972,2]
[351896687,1738831843851,-583.77995965,0.00013972,2]
[351896689,1738831843860,-2583.68,0.00013972,2]
[351896691,1738831843870,-500.0,0.00013972,2]
[351896693,1738831843879,-1161.54,0.00013972,2]
[351896695,1738831843889,-2726.37,0.00013972,2]
[351896697,1738831843898,-1420.21,0.00013972,2]
[351896699,1738831843908,-2826.8,0.00013972,2]
[351896701,1738831843918,-546.39,0.00013972,2]
[351896704,1738831843938,-610.41398518,0.00013972,2]
[351896706,1738831843948,-500.0,0.00013972,2]
[351896708,1738831843959,-1104.47,0.00013972,2]
[351896710,1738831843970,-6528.31,0.00013972,2]
[351896712,1738831843981,-643.63,0.00013972,2]
[351896713,1738831843991,-500.0,0.00013972,2]
[351896714,1738831844000,-500.0,0.00013972,2]
[351896715,1738831844011,-500.0,0.00013972,2]
[351896716,1738831844021,-973.28,0.00013972,2]
[351896717,1738831844031,-500.0,0.00013972,2]
[351896718,1738831844041,-500.0,0.00013972,2]
[351896719,1738831844052,-500.0,0.00013972,2]
[351896720,1738831844062,-500.0,0.00013972,2]
[351896721,1738831844072,-14275.78,0.00013972,2]
[351896722,1738831844082,-501.34,0.00013972,2]
[351896723,1738831844092,-1396.28,0.00013972,2]
[351896724,1738831844102,-1126.36,0.00013972,2]
[351896725,1738831844112,-2985.37,0.00013972,2]
[351896727,1738831844122,-33081.07,0.00013972,2]
[351896728,1738831844133,-400.0,0.00013973,2]
[351896730,1738831844143,-1000.0,0.00014,14]
[351896732,1738831844153,-1000.0,0.00014,3]
[351896734,1738831844165,-398.85961725,0.00014069,2]
[351896737,1738831844176,-771.0,0.000141,5]
[351896739,1738831844185,-500.0,0.00014109,2]
[351896741,1738831844195,-500.0,0.00014109,2]
[351896743,1738831844207,-500.0,0.00014109,2]
[351896745,1738831844218,-500.0,0.00014109,2]
[351896747,1738831844228,-500.0,0.00014109,2]
[351896749,1738831844239,-455.48528004,0.00014109,2]
[351896751,1738831844251,-322.43774815,0.00014109,2]
[351896753,1738831844262,-1066.02,0.00014109,2]
[351896756,1738831844271,-1044.03,0.00014109,2]
[351896758,1738831844282,-500.0,0.00014109,2]
[351896760,1738831844292,-500.0,0.00014109,2]
[351896761,1738831844302,-560.09,0.00014109,2]
[351896764,1738831844312,-592.6496695,0.00014109,2]
[351896766,1738831844323,-500.0,0.00014109,2]
[351896768,1738831844333,-500.0,0.00014109,2]
[351896770,1738831844343,-1146.05,0.00014109,2]
[351896772,1738831844353,-500.0,0.00014109,2]
[351896774,1738831844362,-500.0,0.00014109,2]
[351896776,1738831844372,-569.58,0.00014109,2]
[351896778,1738831844382,-728.1,0.00014109,2]
[351896780,1738831844392,-1215.7,0.00014109,2]
[351896782,1738831844403,-500.0,0.00014109,2]
[351896784,1738831844412,-500.0,0.00014109,2]
[351896786,1738831844422,-530.43,0.00014109,2]
[351896788,1738831844432,-882.07,0.00014109,2]
[351896790,1738831844442,-509.83,0.00014109,2]
[351896792,1738831844452,-500.0,0.00014109,2]
[351896794,1738831844462,-500.0,0.00014109,2]
[351896796,1738831844472,-500.0,0.00014109,2]
[351896798,1738831844481,-500.0,0.00014109,2]
[351896801,1738831844491,-500.0,0.00014109,2]
[351896803,1738831844501,-500.0,0.00014109,2]
[351896805,1738831844511,-172.92019654,0.00014109,2]
[351896807,1738831844521,-500.0,0.00014109,2]
[351896809,1738831844530,-500.0,0.00014109,2]
[351896811,1738831844540,-500.0,0.00014109,2]
[351896813,1738831844549,-684.27,0.00014109,2]
[351896815,1738831844558,-500.0,0.00014109,2]
[351896817,1738831844568,-500.0,0.00014109,2]
[351896819,1738831844577,-1113.03,0.00014109,2]
[351896821,1738831844587,-1767.07,0.00014109,2]
[351896823,1738831844597,-500.0,0.00014109,2]
[351896825,1738831844606,-1100.91,0.00014109,2]
[351896827,1738831844616,-646.29,0.00014109,2]
[351896829,1738831844625,-1104.32,0.00014109,2]
[351896831,1738831844635,-1568.08,0.00014109,2]
[351896833,1738831844644,-500.0,0.00014109,2]
[351896835,1738831844654,-500.0,0.00014109,2]
[351896837,1738831844663,-500.0,0.00014109,2]
[351896839,1738831844672,-500.0,0.00014109,2]
[351896841,1738831844682,-198.48339176,0.00014109,2]
[351896843,1738831844692,-3532.37,0.00014109,2]
[351896845,1738831844702,-500.0,0.00014109,2]
[351896847,1738831844712,-1419.32,0.00014109,2]
[351896849,1738831844722,-500.0,0.00014109,2]
[351896851,1738831844732,-500.0,0.00014109,2]
[351896853,1738831844741,-1732.0,0.00014109,2]
[351896855,1738831844751,-500.0,0.00014109,2]
[351896858,1738831844761,-500.0,0.00014109,2]
[351896867,1738831844839,-4570.86,0.00014109,2]
[351896869,1738831844849,-786.84,0.00014109,2]
[351896871,1738831844859,-1690.01,0.00014109,2]
[351896873,1738831844869,-688.56,0.00014109,2]
[351896875,1738831844878,-500.0,0.00014109,2]
[351896877,1738831844886,-513.83877474,0.00014109,2]
[351896879,1738831844895,-611.71,0.00014109,2]
[351896881,1738831844903,-500.0,0.00014109,2]
[351896883,1738831844911,-1303.66,0.00014109,2]
[351896885,1738831844920,-318.46219912,0.00014109,2]
[351896887,1738831844928,-500.0,0.00014109,2]
[351896889,1738831844936,-500.0,0.00014109,2]
[351896891,1738831844945,-1812.26,0.00014109,2]
[351896893,1738831844954,-455.10669522,0.00014109,2]
[351896895,1738831844962,-599.61,0.00014109,2]
[351896897,1738831844971,-579.42,0.00014109,2]
[351896899,1738831844980,-500.0,0.00014109,2]
[351896901,1738831844988,-500.0,0.00014109,2]
[351896903,1738831844997,-3360.55,0.00014109,2]
[351896905,1738831845006,-2295.17,0.00014109,2]
[351896907,1738831845015,-620.45,0.00014109,2]
[351896909,1738831845024,-500.0,0.00014109,2]
[351896911,1738831845033,-500.0,0.00014109,2]
[351896913,1738831845042,-11293.93,0.00014109,2]
[351896915,1738831845049,-1452.37,0.00014109,2]
[351896917,1738831845058,-1378.43,0.00014109,2]
[351896919,1738831845067,-579.36,0.00014109,2]
[351896921,1738831845075,-151.0,0.00014109,2]
[351896923,1738831845084,-1012.14,0.00014109,2]
[351896925,1738831845092,-500.0,0.00014109,2]
[351896927,1738831845102,-926.12,0.00014109,2]
[351896929,1738831845111,-151.0,0.00014109,2]
[351896931,1738831845120,-1239.45,0.00014109,2]
[351896933,1738831845130,-8141.8,0.00014109,2]
[351896935,1738831845139,-500.0,0.00014109,2]
[351896937,1738831845149,-621.45,0.00014109,2]
[351896939,1738831845158,-500.0,0.00014109,2]
[351896941,1738831845171,-500.0,0.00014109,2]
[351896943,1738831845181,-151.0,0.00014109,2]
[351896945,1738831845190,-500.0,0.00014109,2]
[351896947,1738831845199,-500.0,0.00014109,2]
[351896949,1738831845209,-2664.82,0.00014109,2]
[351896951,1738831845218,-500.0,0.00014109,2]
[351896953,1738831845228,-822.74,0.00014109,2]
[351896955,1738831845239,-2583.68,0.00014109,2]
[351896957,1738831845248,-500.0,0.00014109,2]
[351896959,1738831845258,-1161.54,0.00014109,2]
[351896961,1738831845268,-2726.37,0.00014109,2]
[351896963,1738831845278,-1420.21,0.00014109,2]
[351896966,1738831845287,-2826.8,0.00014109,2]
[351896968,1738831845296,-546.39,0.00014109,2]
[351896970,1738831845307,-1104.47,0.00014109,2]
[351896972,1738831845316,-500.0,0.00014109,2]
[351896974,1738831845326,-6528.31,0.00014109,2]
[351896976,1738831845335,-199.453916,0.00014109,2]
[351896978,1738831845345,-643.63,0.00014109,2]
[351896980,1738831845355,-199.453916,0.00014109,2]
[351896982,1738831845365,-500.0,0.00014109,2]
[351896984,1738831845375,-151.0,0.00014109,2]
[351896986,1738831845385,-151.0,0.00014109,2]
[351896988,1738831845394,-151.0,0.00014109,2]
[351896990,1738831845404,-500.0,0.00014109,2]
[351896992,1738831845414,-500.0,0.00014109,2]
[351896994,1738831845424,-973.28,0.00014109,2]
[351896996,1738831845436,-151.0,0.00014109,2]
[351896998,1738831845446,-500.0,0.00014109,2]
[351897000,1738831845456,-500.0,0.00014109,2]
[351897002,1738831845466,-500.0,0.00014109,2]
[351897004,1738831845477,-14275.78,0.00014109,2]
[351897006,1738831845487,-1396.28,0.00014109,2]
[351897008,1738831845497,-501.34,0.00014109,2]
[351897011,1738831845506,-1126.36,0.00014109,2]
[351897014,1738831845516,-2985.37,0.00014109,2]
[351897017,1738831845526,-33081.07,0.00014109,2]
[351897019,1738831845536,-157.39731702,0.00014146,2]
[351897021,1738831845545,-220.91566545,0.000142,4]
[351897023,1738831845555,-200.0,0.000142,5]
[351897025,1738831845564,-200.0,0.000142,7]
[351897027,1738831845573,-200.0,0.000142,4]
[351897029,1738831845583,-200.0,0.000142,3]
[351897031,1738831845592,-200.0,0.000142,6]
[351897033,1738831845601,-200.0,0.000142,4]
[351897035,1738831845611,-200.0,0.000142,3]
[351897037,1738831845620,-484.20603806,0.00014213,2]
[351897039,1738831845629,-415.29741773,0.00014215,2]
[351897041,1738831845639,-500.0,0.00014246,2]
[351897043,1738831845648,-500.0,0.00014246,2]
[351897045,1738831845658,-500.0,0.00014246,2]
[351897047,1738831845668,-500.0,0.00014246,2]
[351897049,1738831845678,-500.0,0.00014246,2]
[351897051,1738831845687,-1066.02,0.00014246,2]
[351897053,1738831845696,-1044.03,0.00014246,2]
[351897055,1738831845706,-500.0,0.00014246,2]
[351897058,1738831845716,-500.0,0.00014246,2]
[351897059,1738831845726,-560.09,0.00014246,2]
[351897061,1738831845735,-500.0,0.00014246,2]
[351897064,1738831845745,-500.0,0.00014246,2]
[351897065,1738831845755,-1146.05,0.00014246,2]
[351897068,1738831845764,-500.0,0.00014246,2]
[351897070,1738831845774,-500.0,0.00014246,2]
[351897072,1738831845783,-569.58,0.00014246,2]
[351897074,1738831845793,-728.1,0.00014246,2]
[351897076,1738831845803,-1215.7,0.00014246,2]
[351897078,1738831845812,-500.0,0.00014246,2]
[351897080,1738831845822,-500.0,0.00014246,2]
[351897082,1738831845831,-530.43,0.00014246,2]
[351897084,1738831845841,-882.07,0.00014246,2]
[351897086,1738831845851,-509.83,0.00014246,2]
[351897088,1738831845861,-500.0,0.00014246,2]
[351897090,1738831845870,-500.0,0.00014246,2]
[351897092,1738831845880,-508.09432037,0.00014246,2]
[351897094,1738831845889,-500.0,0.00014246,2]
[351897096,1738831845898,-500.0,0.00014246,2]
[351897098,1738831845907,-336.35,0.00014246,2]
[351897100,1738831845919,-500.0,0.00014246,2]
[351897102,1738831845935,-500.0,0.00014246,2]
[351897104,1738831845951,-500.0,0.00014246,2]
[351897106,1738831845962,-684.27,0.00014246,2]
[351897108,1738831845973,-152.968109,0.00014246,2]
[351897110,1738831845983,-500.0,0.00014246,2]
[351897112,1738831845992,-500.0,0.00014246,2]
[351897114,1738831846001,-1113.03,0.00014246,2]
[351897116,1738831846011,-1767.07,0.00014246,2]
[351897118,1738831846021,-368.06579917,0.00014246,2]
[351897120,1738831846030,-1100.91,0.00014246,2]
[351897122,1738831846040,-151.0,0.00014246,2]
[351897124,1738831846050,-646.29,0.00014246,2]
[351897126,1738831846059,-1104.32,0.00014246,2]
[351897128,1738831846069,-151.0,0.00014246,2]
[351897130,1738831846079,-1568.08,0.00014246,2]
[351897132,1738831846088,-500.0,0.00014246,2]
[351897134,1738831846098,-151.0,0.00014246,2]
[351897136,1738831846107,-228.36157386,0.00014246,2]
[351897138,1738831846117,-500.0,0.00014246,2]
[351897140,1738831846126,-151.0,0.00014246,2]
[351897142,1738831846136,-500.0,0.00014246,2]
[351897144,1738831846145,-3532.37,0.00014246,2]
[351897146,1738831846155,-500.0,0.00014246,2]
[351897148,1738831846166,-1419.32,0.00014246,2]
[351897150,1738831846176,-500.0,0.00014246,2]
[351897152,1738831846186,-500.0,0.00014246,2]
[351897154,1738831846196,-1732.0,0.00014246,2]
[351897157,1738831846207,-500.0,0.00014246,2]
[351897159,1738831846217,-500.0,0.00014246,2]
[351897161,1738831846228,-4570.86,0.00014246,2]
[351897163,1738831846242,-786.84,0.00014246,2]
[351897165,1738831846253,-1690.01,0.00014246,2]
[351897167,1738831846263,-151.0,0.00014246,2]
[351897169,1738831846273,-688.56,0.00014246,2]
[351897171,1738831846283,-500.0,0.00014246,2]
[351897173,1738831846293,-151.0,0.00014246,2]
[351897175,1738831846303,-151.0,0.00014246,2]
[351897177,1738831846313,-611.71,0.00014246,2]
[351897179,1738831846323,-151.0,0.00014246,2]
[351897181,1738831846332,-500.0,0.00014246,2]
[351897182,1738831846342,-1303.66,0.00014246,2]
[351897185,1738831846353,-151.0,0.00014246,2]
[351897187,1738831846363,-151.0,0.00014246,2]
[351897189,1738831846373,-500.0,0.00014246,2]
[351897191,1738831846383,-445.39061346,0.00014246,2]
[351897192,1738831846393,-151.0,0.00014246,2]
[351897195,1738831846403,-1812.26,0.00014246,2]
[351897197,1738831846413,-599.61,0.00014246,2]
[351897199,1738831846423,-151.0,0.00014246,2]
[351897200,1738831846433,-579.42,0.00014246,2]
[351897203,1738831846443,-500.0,0.00014246,2]
[351897204,1738831846453,-500.0,0.00014246,2]
[351897207,1738831846463,-3360.55,0.00014246,2]
[351897209,1738831846473,-2295.17,0.00014246,2]
[351897211,1738831846483,-620.45,0.00014246,2]
[351897213,1738831846493,-500.0,0.00014246,2]
[351897215,1738831846507,-500.0,0.00014246,2]
[351897217,1738831846518,-11293.93,0.00014246,2]
[351897219,1738831846528,-1452.37,0.00014246,2]
[351897221,1738831846539,-1378.43,0.00014246,2]
[351897223,1738831846550,-579.36,0.00014246,2]
[351897225,1738831846559,-151.0,0.00014246,2]
[351897227,1738831846570,-1012.14,0.00014246,2]
[351897229,1738831846580,-500.0,0.00014246,2]
[351897231,1738831846590,-926.12,0.00014246,2]
[351897233,1738831846600,-151.0,0.00014246,2]
[351897235,1738831846609,-1239.45,0.00014246,2]
[351897237,1738831846619,-8141.8,0.00014246,2]
[351897239,1738831846629,-500.0,0.00014246,2]
[351897242,1738831846640,-621.45,0.00014246,2]
[351897244,1738831846650,-500.0,0.00014246,2]
[351897246,1738831846660,-500.0,0.00014246,2]
[351897248,1738831846670,-151.0,0.00014246,2]
[351897250,1738831846680,-500.0,0.00014246,2]
[351897252,1738831846691,-500.0,0.00014246,2]
[351897254,1738831846701,-2664.82,0.00014246,2]
[351897256,1738831846711,-500.0,0.00014246,2]
[351897258,1738831846722,-822.74,0.00014246,2]
[351897260,1738831846732,-2583.68,0.00014246,2]
[351897262,1738831846743,-500.0,0.00014246,2]
[351897264,1738831846753,-1161.54,0.00014246,2]
[351897266,1738831846762,-2726.37,0.00014246,2]
[351897268,1738831846773,-1420.21,0.00014246,2]
[351897271,1738831846783,-2826.8,0.00014246,2]
[351897273,1738831846793,-546.39,0.00014246,2]
[351897275,1738831846809,-1104.47,0.00014246,2]
[351897277,1738831846819,-500.0,0.00014246,2]
[351897279,1738831846829,-6528.31,0.00014246,2]
[351897281,1738831846839,-199.453916,0.00014246,2]
[351897283,1738831846850,-643.63,0.00014246,2]
[351897285,1738831846861,-199.453916,0.00014246,2]
[351897287,1738831846872,-500.0,0.00014246,2]
[351897289,1738831846882,-151.0,0.00014246,2]
[351897291,1738831846892,-500.0,0.00014246,2]
[351897293,1738831846902,-500.0,0.00014246,2]
[351897295,1738831846912,-973.28,0.00014246,2]
[351897297,1738831846922,-500.0,0.00014246,2]
[351897299,1738831846932,-500.0,0.00014246,2]
[351897300,1738831846942,-500.0,0.00014246,2]
[351897301,1738831846952,-14275.78,0.00014246,2]
[351897302,1738831846962,-1396.28,0.00014246,2]
[351897303,1738831846973,-501.34,0.00014246,2]
[351897304,1738831846984,-1126.36,0.00014246,2]
[351897305,1738831846994,-37.23251224,0.00014246,2]
[351897351,1738831847551,-500.0,0.00013698,2]
[351897353,1738831847563,-151.0,0.00014109,2]
[351897355,1738831847574,-310.88675594,0.00014246,2]
[351897362,1738831847642,-282.04663332,0.00013835,2]
[351897372,1738831847746,-500.0,0.00013698,2]
[351897374,1738831847757,-151.71,0.00013835,2]
[351897377,1738831847775,-66.24336668,0.00013835,2]
[351897379,1738831847786,-500.0,0.00013972,2]
[351897381,1738831847796,-151.0,0.00014109,2]
[351897383,1738831847807,-328.38,0.00014109,2]
[351897385,1738831847819,-2637.25073182,0.00014246,2]
[351897387,1738831847831,-6164.2258695,0.00014246,2]
[351897390,1738831847843,-15990.41131038,0.00014246,2]
[351901854,1738832380279,5000.0,0.000192,120]
[351901862,1738832756145,-237.22,0.00010959,2]
[351901863,1738832756165,-197.68,0.00010959,2]
[351901864,1738832756186,-164.73,0.00010959,2]
[351901865,1738832756208,-378.78,0.00010959,2]
[351901866,1738832756230,-315.65,0.00010959,2]
[351901867,1738832756251,-263.04,0.00010959,2]
[351901868,1738832756270,-58.16704801,0.00010959,2]
[351901870,1738832835199,-182.67,0.00010959,2]
[351901871,1738832835219,-179.06,0.00010959,2]
[351901872,1738832835239,-460.00324638,0.00010959,2]
[351901873,1738832836088,-360.50050943,0.00010959,2]
[351901874,1738832840084,-74.82624419,0.00010959,2]
[351901875,1738832840105,-323.95,0.00010959,2]
[351901876,1738832840127,-353.03200687,0.00012768,2]
[351901877,1738832842098,-743.53021323,0.00012768,2]
[351901878,1738832845104,-724.46,0.00010959,2]
[351901879,1738832845128,-197.11086939,0.00012768,2]
[351901880,1738832850146,-646.37872169,0.00012768,2]
[351901881,1738832853196,-312.67279702,0.00012768,2]
[351901882,1738832853219,-800.0,0.0001315,2]
[351901883,1738832853242,-117.13823902,0.00013303,2]
[351901884,1738832948133,-800.0,0.0001315,2]
[351901885,1738832948156,-234.60414598,0.0001317,2]
[351901886,1738832948178,-215.02589218,0.00013303,2]
[351901922,1738833032305,-170.26012468,0.00013303,2]
[351901924,1738833032315,-300.0,0.00013499,2]
[351901926,1738833032324,-4998.85484728,0.000135,2]
[351901928,1738833032335,-381.12908789,0.000135,2]
[351901931,1738833032345,-157.39731702,0.00013598,2]
[351901933,1738833032356,-474.41170802,0.00013598,2]
[351901935,1738833032366,-4998.85484728,0.000136,2]
[351901937,1738833032376,-2173.71625772,0.00013668,2]
[351901939,1738833032387,-3394.91278345,0.00013668,2]
[351902079,1738833038282,-71.81985797,0.00013668,2]
[351902081,1738833038294,-1798.24863364,0.00013668,2]
[351902083,1738833038304,-372.02229542,0.00013697,2]
[351902099,1738833038451,-82.61446814,0.00013697,2]
[351902103,1738833038478,-180.65652506,0.00013697,2]
[351902105,1738833038488,-500.0,0.00013698,2]
[351902106,1738833038497,-500.0,0.00013698,2]
[351902108,1738833038507,-500.0,0.00013698,2]
[351902111,1738833038519,-500.0,0.00013698,2]
[351902113,1738833038528,-500.0,0.00013698,2]
[351902115,1738833038538,-500.0,0.00013698,2]
[351902117,1738833038548,-500.0,0.00013698,2]
[351902119,1738833038557,-500.0,0.00013698,2]
[351902121,1738833038567,-500.0,0.00013698,2]
[351902123,1738833038576,-661.74,0.00013698,2]
[351902125,1738833038587,-500.0,0.00013698,2]
[351902127,1738833038596,-500.0,0.00013698,2]
[351902129,1738833038605,-500.0,0.00013698,2]
[351902131,1738833038615,-500.0,0.00013698,2]
[351902133,1738833038624,-24776.28366106,0.00013698,2]
[351902135,1738833038634,-500.0,0.00013698,2]
[351902137,1738833038643,-500.0,0.00013698,2]
[351902139,1738833038653,-500.0,0.00013698,2]
[351902141,1738833038663,-500.0,0.00013698,2]
[351902143,1738833038672,-500.0,0.00013698,2]
[351902145,1738833038682,-500.0,0.00013698,2]
[351902147,1738833038691,-500.0,0.00013698,2]
[351902149,1738833038701,-1081.41,0.00013698,2]
[351902151,1738833038711,-500.0,0.00013698,2]
[351902153,1738833038720,-500.0,0.00013698,2]
[351902155,1738833038730,-500.0,0.00013698,2]
[351902157,1738833038740,-500.0,0.00013698,2]
[351902159,1738833038750,-500.0,0.00013698,2]
[351902161,1738833038759,-500.0,0.00013698,2]
[351902163,1738833038770,-500.0,0.00013698,2]
[351902165,1738833038779,-352.4410277,0.00013698,2]
[351902167,1738833038789,-500.0,0.00013698,2]
[351902169,1738833038798,-500.0,0.00013698,2]
[351902171,1738833038808,-500.0,0.00013698,2]
[351902173,1738833038819,-500.0,0.00013698,2]
[351902175,1738833038829,-500.0,0.00013698,2]
[351902177,1738833038839,-500.0,0.00013698,2]
[351902179,1738833038850,-500.0,0.00013698,2]
[351902181,1738833038861,-500.0,0.00013698,2]
[351902183,1738833038871,-500.0,0.00013698,2]
[351902185,1738833038881,-500.0,0.00013698,2]
[351902187,1738833038891,-500.0,0.00013698,2]
[351902189,1738833038900,-500.0,0.00013698,2]
[351902191,1738833038909,-500.0,0.00013698,2]
[351902193,1738833038919,-1193.32,0.00013698,2]
[351902195,1738833038930,-424.86869562,0.00013698,2]
[351902197,1738833038940,-500.0,0.00013698,2]
[351902199,1738833038950,-500.0,0.00013698,2]
[351902201,1738833038960,-500.0,0.00013698,2]
[351902203,1738833038969,-1167.66,0.00013698,2]
[351902205,1738833038979,-500.0,0.00013698,2]
[351902207,1738833038988,-659.31,0.00013698,2]
[351902209,1738833038998,-500.0,0.00013698,2]
[351902211,1738833039007,-500.0,0.00013698,2]
[351902213,1738833039018,-500.0,0.00013698,2]
[351902216,1738833039028,-500.0,0.00013698,2]
[351902218,1738833039038,-500.0,0.00013698,2]
[351902220,1738833039047,-500.0,0.00013698,2]
[351902222,1738833039058,-536.16,0.00013698,2]